[Event "December 5 Late 2023"]
[Site "https://www.chess.com"]
[Date "2023.12.05"]
[Round "3"]
[White "Terry, Renato"]
[Black "Djokic, Mihailo"]
[Result "1-0"]
[Board "19"]
[TimeControl "180+1"]
[WhiteFideId "3803457"]
[BlackFideId "976440"]
[WhiteElo "2985"]
[BlackElo "2717"]
[WhiteTeam "PER"]
[BlackTeam "SRB"]
[WhiteClock "0:00:05"]
[BlackClock "0:00:03"]

1. d4 {[%clk 0:02:59]}  Nf6 {[%clk 0:03:00]} 2. Bg5 {[%clk 0:02:59]}  d5 {[%clk 0:03:00]} 3. e3 {[%clk 0:02:59]}  Nbd7 {[%clk 0:02:55]} 4. Nf3 {[%clk 0:02:57]}  c5 {[%clk 0:02:52]} 5. c3 {[%clk 0:02:57]}  e6 {[%clk 0:02:52]} 6. Nbd2 {[%clk 0:02:56]}  Be7 {[%clk 0:02:51]} 7. Bd3 {[%clk 0:02:56]}  h6 {[%clk 0:02:49]} 8. Bf4 {[%clk 0:02:51]}  Qb6 {[%clk 0:02:49]} 9. Qc2 {[%clk 0:02:47]}  c4 {[%clk 0:02:48]} 10. Be2 {[%clk 0:02:47]}  Nh5 {[%clk 0:02:38]} 11. Be5 {[%clk 0:02:29]}  Nxe5 {[%clk 0:02:38]} 12. dxe5 {[%clk 0:02:28]}  g6 {[%clk 0:02:21]} 13. g4 {[%clk 0:02:11]}  Ng7 {[%clk 0:02:20]} 14. h3 {[%clk 0:02:07]}  Qc7 {[%clk 0:02:19]} 15. b3 {[%clk 0:01:58]}  cxb3 {[%clk 0:02:17]} 16. Qxb3 {[%clk 0:01:58]}  h5 {[%clk 0:02:14]} 17. Rg1 {[%clk 0:01:56]}  hxg4 {[%clk 0:02:13]} 18. hxg4 {[%clk 0:01:57]}  Bd7 {[%clk 0:02:11]} 19. c4 {[%clk 0:01:49]}  dxc4 {[%clk 0:02:03]} 20. Bxc4 {[%clk 0:01:46]}  Bc6 {[%clk 0:01:53]} 21. Bb5 {[%clk 0:01:42]}  Bxb5 {[%clk 0:01:34]} 22. Qxb5+ {[%clk 0:01:43]}  Qd7 {[%clk 0:01:35]} 23. Rb1 {[%clk 0:01:35]}  Qxb5 {[%clk 0:01:34]} 24. Rxb5 {[%clk 0:01:36]}  b6 {[%clk 0:01:34]} 25. Ke2 {[%clk 0:01:28]}  O-O-O {[%clk 0:01:32]} 26. Ne4 {[%clk 0:01:15]}  Ne8 {[%clk 0:01:32]} 27. Nd4 {[%clk 0:00:56]}  Nc7 {[%clk 0:01:27]} 28. Rc1 {[%clk 0:00:54]}  Kb7 {[%clk 0:01:27]} 29. Rb3 {[%clk 0:00:50]}  Rd7 {[%clk 0:01:15]} 30. Nc6 {[%clk 0:00:46]}  Na6 {[%clk 0:00:51]} 31. Nxe7 {[%clk 0:00:41]}  Rxe7 {[%clk 0:00:51]} 32. a4 {[%clk 0:00:40]}  Nb8 {[%clk 0:00:25]} 33. a5 {[%clk 0:00:38]}  Nd7 {[%clk 0:00:25]} 34. Nd6+ {[%clk 0:00:33]}  Ka8 {[%clk 0:00:23]} 35. axb6 {[%clk 0:00:33]}  Nxb6 {[%clk 0:00:23]} 36. Kf3 {[%clk 0:00:23]}  Nd7 {[%clk 0:00:20]} 37. Ke4 {[%clk 0:00:14]}  f5+ {[%clk 0:00:15]} 38. Kd4 {[%clk 0:00:08]}  Nb6 {[%clk 0:00:09]} 39. g5 {[%clk 0:00:06]}  Rh4+ {[%clk 0:00:09]} 40. f4 {[%clk 0:00:07]}  Rh8 {[%clk 0:00:08]} 41. Rbc3 {[%clk 0:00:07]}  Kb8 {[%clk 0:00:06]} 42. Rb1 {[%clk 0:00:06]}  Rc7 {[%clk 0:00:05]} 43. Rcb3 {[%clk 0:00:02]}  Rd8 {[%clk 0:00:05]} 44. Rb4 {[%clk 0:00:02]}  Rc6 {[%clk 0:00:05]} 45. Rb5 {[%clk 0:00:02]}  Kc7 {[%clk 0:00:05]} 46. Ra5 {[%clk 0:00:02]}  Kb8 {[%clk 0:00:06]} 47. e4 {[%clk 0:00:02]}  Rd7 {[%clk 0:00:04]} 48. exf5 {[%clk 0:00:02]}  exf5 {[%clk 0:00:04]} 49. Ke3 {[%clk 0:00:02]}  Re7 {[%clk 0:00:03]} 50. Kf3 {[%clk 0:00:01]}  Rh7 {[%clk 0:00:03]} 51. Kg2 {[%clk 0:00:02]}  Rh4 {[%clk 0:00:03]} 52. Rb4 {[%clk 0:00:01]}  Rg4+ {[%clk 0:00:03]} 53. Kf3 {[%clk 0:00:02]}  Rc3+ {[%clk 0:00:03]} 54. Kf2 {[%clk 0:00:02]}  Rc2+ {[%clk 0:00:03]} 55. Kf3 {[%clk 0:00:02]}  Rc3+ {[%clk 0:00:04]} 56. Kf2 {[%clk 0:00:02]}  Rc2+ {[%clk 0:00:01]} 57. Ke3 {[%clk 0:00:02]}  Rh2 {[%clk 0:00:02]} 58. Kf3 {[%clk 0:00:01]}  Rh3+ {[%clk 0:00:02]} 59. Kf2 {[%clk 0:00:02]}  Rgh4 {[%clk 0:00:01]} 60. Kg2 {[%clk 0:00:02]}  Rh2+ {[%clk 0:00:01]} 61. Kg1 {[%clk 0:00:02]}  Rh1+ {[%clk 0:00:02]} 62. Kf2 {[%clk 0:00:03]}  R4h2+ {[%clk 0:00:03]} 63. Ke3 {[%clk 0:00:03]}  Rh3+ {[%clk 0:00:03]} 64. Kf2 {[%clk 0:00:03]}  R1h2+ {[%clk 0:00:04]} 65. Kg1 {[%clk 0:00:04]}  Rc2 {[%clk 0:00:04]} 66. Ra1 {[%clk 0:00:03]}  Rg3+ {[%clk 0:00:04]} 67. Kf1 {[%clk 0:00:04]}  Rf3+ {[%clk 0:00:04]} 68. Kg1 {[%clk 0:00:03]}  Rg3+ {[%clk 0:00:04]} 69. Kf1 {[%clk 0:00:04]}  Rh3 {[%clk 0:00:04]} 70. Kg1 {[%clk 0:00:04]}  Rcc3 {[%clk 0:00:02]} 71. Rab1 {[%clk 0:00:04]}  Rcg3+ {[%clk 0:00:02]} 72. Kf2 {[%clk 0:00:04]}  Rg4 {[%clk 0:00:02]} 73. e6 {[%clk 0:00:03]}  Rh2+ {[%clk 0:00:02]} 74. Kf3 {[%clk 0:00:03]}  Rh3+ {[%clk 0:00:03]} 75. Kf2 {[%clk 0:00:04]}  Rh2+ {[%clk 0:00:03]} 76. Kf1 {[%clk 0:00:04]}  Rh1+ {[%clk 0:00:03]} 77. Ke2 {[%clk 0:00:04]}  Rh2+ {[%clk 0:00:02]} 78. Ke3 {[%clk 0:00:04]}  Kc7 {[%clk 0:00:02]} 79. Nb5+ {[%clk 0:00:03]}  Kd8 {[%clk 0:00:02]} 80. Rd1+ {[%clk 0:00:02]}  Ke7 {[%clk 0:00:02]} 81. Nxa7 {[%clk 0:00:03]}  Kxe6 {[%clk 0:00:02]} 82. Rxb6+ {[%clk 0:00:03]}  Ke7 {[%clk 0:00:02]} 83. Nc8+ {[%clk 0:00:03]}  Ke8 {[%clk 0:00:02]} 84. Re6+ {[%clk 0:00:03]}  Kf7 {[%clk 0:00:03]} 85. Re7+ {[%clk 0:00:04]}  Kf8 {[%clk 0:00:03]} 86. Rd8# {[%clk 0:00:05]} 1-0

[Event "December 5 Late 2023"]
[Site "https://www.chess.com"]
[Date "2023.12.05"]
[Round "3"]
[White "Bolourchifard, Farzad"]
[Black "Drygalov, Sergey"]
[Result "0-1"]
[Board "20"]
[TimeControl "180+1"]
[WhiteFideId "12510084"]
[BlackFideId "24171743"]
[WhiteElo "2714"]
[BlackElo "2985"]
[WhiteTeam "IRI"]
[BlackTeam "RUS"]
[WhiteClock "0:00:00"]
[BlackClock "0:02:04"]

1. d4 {[%clk 0:03:00]}  Nf6 {[%clk 0:02:59]} 2. Nf3 {[%clk 0:03:01]}  d5 {[%clk 0:02:59]} 3. c4 {[%clk 0:03:01]}  c6 {[%clk 0:03:00]} 4. Nc3 {[%clk 0:03:01]}  e6 {[%clk 0:03:00]} 5. Bg5 {[%clk 0:03:02]}  h6 {[%clk 0:02:59]} 6. Bxf6 {[%clk 0:03:01]}  Qxf6 {[%clk 0:03:00]} 7. e3 {[%clk 0:03:02]}  Nd7 {[%clk 0:03:00]} 8. cxd5 {[%clk 0:03:02]}  exd5 {[%clk 0:02:59]} 9. Be2 {[%clk 0:03:03]}  Bd6 {[%clk 0:02:57]} 10. O-O {[%clk 0:03:02]}  O-O {[%clk 0:02:57]} 11. Rb1 {[%clk 0:03:02]}  Qe7 {[%clk 0:02:57]} 12. a3 {[%clk 0:02:49]}  a5 {[%clk 0:02:56]} 13. Na4 {[%clk 0:02:40]}  Nf6 {[%clk 0:02:47]} 14. Nb6 {[%clk 0:02:39]}  Rb8 {[%clk 0:02:48]} 15. Nxc8 {[%clk 0:02:38]}  Rfxc8 {[%clk 0:02:47]} 16. Qc2 {[%clk 0:01:56]}  Ne4 {[%clk 0:02:45]} 17. Bd3 {[%clk 0:01:29]}  Re8 {[%clk 0:02:45]} 18. Nd2 {[%clk 0:01:15]}  Nf6 {[%clk 0:02:38]} 19. Qc3 {[%clk 0:01:08]}  a4 {[%clk 0:02:34]} 20. h3 {[%clk 0:01:06]}  Bc7 {[%clk 0:02:32]} 21. Rfe1 {[%clk 0:01:05]}  Qd6 {[%clk 0:02:31]} 22. Nf1 {[%clk 0:01:05]}  Ne4 {[%clk 0:02:29]} 23. Bxe4 {[%clk 0:01:05]}  Rxe4 {[%clk 0:02:30]} 24. b4 {[%clk 0:01:01]}  axb3 {[%clk 0:02:28]} 25. Rxb3 {[%clk 0:01:01]}  Ra8 {[%clk 0:02:21]} 26. Rxb7 {[%clk 0:00:41]}  Ba5 {[%clk 0:02:18]} 27. Rb4 {[%clk 0:00:19]}  Bxb4 {[%clk 0:02:19]} 28. axb4 {[%clk 0:00:20]}  Re7 {[%clk 0:02:18]} 29. Rc1 {[%clk 0:00:20]}  Rb7 {[%clk 0:02:16]} 30. Qxc6 {[%clk 0:00:19]}  Qxc6 {[%clk 0:02:16]} 31. Rxc6 {[%clk 0:00:20]}  Ra1 {[%clk 0:02:16]} 32. g3 {[%clk 0:00:19]}  Rxb4 {[%clk 0:02:16]} 33. Kg2 {[%clk 0:00:20]}  Rb2 {[%clk 0:02:15]} 34. Rc8+ {[%clk 0:00:09]}  Kh7 {[%clk 0:02:15]} 35. Rc7 {[%clk 0:00:09]}  f6 {[%clk 0:02:14]} 36. Nh2 {[%clk 0:00:10]}  Raa2 {[%clk 0:02:12]} 37. Ng4 {[%clk 0:00:10]}  Kg6 {[%clk 0:02:12]} 38. Rc6 {[%clk 0:00:03]}  Kf5 {[%clk 0:02:06]} 39. Rc5 {[%clk 0:00:01]}  h5 {[%clk 0:02:04]} 40. Rxd5+ {[%clk 0:00:00]}  Kg6 {[%clk 0:02:04]} 0-1

[Event "December 5 Late 2023"]
[Site "https://www.chess.com"]
[Date "2023.12.05"]
[Round "3"]
[White "Rosen, Eric"]
[Black "Bok, Benjamin"]
[Result "0-1"]
[Board "21"]
[TimeControl "180+1"]
[WhiteFideId "2032562"]
[BlackFideId "1017063"]
[WhiteElo "2713"]
[BlackElo "2978"]
[WhiteTeam "USA"]
[BlackTeam "NED"]
[WhiteClock "0:00:01"]
[BlackClock "0:00:11"]

1. e4 {[%clk 0:03:00]}  c5 {[%clk 0:02:59]} 2. Nc3 {[%clk 0:03:00]}  d6 {[%clk 0:03:00]} 3. f4 {[%clk 0:03:01]}  g6 {[%clk 0:03:00]} 4. Nf3 {[%clk 0:03:01]}  Bg7 {[%clk 0:03:00]} 5. Bc4 {[%clk 0:03:02]}  Nc6 {[%clk 0:03:01]} 6. O-O {[%clk 0:03:03]}  e6 {[%clk 0:03:01]} 7. d4 {[%clk 0:03:03]}  cxd4 {[%clk 0:03:02]} 8. Nb5 {[%clk 0:03:03]}  Nge7 {[%clk 0:03:02]} 9. Bb3 {[%clk 0:03:04]}  O-O {[%clk 0:03:02]} 10. Nbxd4 {[%clk 0:03:02]}  Na5 {[%clk 0:03:02]} 11. Ba4 {[%clk 0:02:49]}  a6 {[%clk 0:02:28]} 12. c3 {[%clk 0:02:48]}  b5 {[%clk 0:02:27]} 13. Bc2 {[%clk 0:02:49]}  Bb7 {[%clk 0:02:24]} 14. Qe2 {[%clk 0:02:49]}  Qd7 {[%clk 0:02:22]} 15. f5 {[%clk 0:02:30]}  Rae8 {[%clk 0:02:14]} 16. fxe6 {[%clk 0:02:14]}  fxe6 {[%clk 0:02:15]} 17. Bg5 {[%clk 0:02:14]}  Nec6 {[%clk 0:02:11]} 18. Nxc6 {[%clk 0:02:06]}  Qxc6 {[%clk 0:01:57]} 19. Rad1 {[%clk 0:02:03]}  Nc4 {[%clk 0:01:55]} 20. Bb3 {[%clk 0:01:59]}  Qxe4 {[%clk 0:01:40]} 21. Bxc4 {[%clk 0:01:45]}  bxc4 {[%clk 0:01:19]} 22. Qxe4 {[%clk 0:01:45]}  Bxe4 {[%clk 0:01:20]} 23. Rxd6 {[%clk 0:01:46]}  a5 {[%clk 0:01:20]} 24. Re1 {[%clk 0:01:37]}  Bd5 {[%clk 0:01:18]} 25. Nd4 {[%clk 0:01:30]}  Rb8 {[%clk 0:00:50]} 26. Bc1 {[%clk 0:01:01]}  Bxd4+ {[%clk 0:00:18]} 27. cxd4 {[%clk 0:01:02]}  c3 {[%clk 0:00:19]} 28. bxc3 {[%clk 0:00:52]}  Rb1 {[%clk 0:00:20]} 29. Rd7 {[%clk 0:00:31]}  Ra1 {[%clk 0:00:18]} 30. Bd2 {[%clk 0:00:11]}  Rxa2 {[%clk 0:00:17]} 31. Re2 {[%clk 0:00:01]}  Bc4 {[%clk 0:00:13]} 32. Rxe6 {[%clk 0:00:01]}  Rf1# {[%clk 0:00:11]} 0-1

[Event "December 5 Late 2023"]
[Site "https://www.chess.com"]
[Date "2023.12.05"]
[Round "3"]
[White "Drozdowski, Kacper"]
[Black "Zeltsan, Joseph"]
[Result "1-0"]
[Board "22"]
[TimeControl "180+1"]
[WhiteFideId "1136720"]
[BlackFideId "30932980"]
[WhiteElo "2978"]
[BlackElo "2711"]
[WhiteTeam "POL"]
[BlackTeam "USA"]
[WhiteClock "0:00:44"]
[BlackClock "0:00:00"]

1. e4 {[%clk 0:03:00]}  e5 {[%clk 0:02:55]} 2. Nf3 {[%clk 0:03:01]}  Nc6 {[%clk 0:02:55]} 3. Bc4 {[%clk 0:03:01]}  Nf6 {[%clk 0:02:56]} 4. d3 {[%clk 0:03:01]}  Bc5 {[%clk 0:02:56]} 5. c3 {[%clk 0:03:01]}  O-O {[%clk 0:02:56]} 6. Bb3 {[%clk 0:03:02]}  d5 {[%clk 0:02:52]} 7. Nbd2 {[%clk 0:03:01]}  Re8 {[%clk 0:02:48]} 8. h3 {[%clk 0:03:01]}  h6 {[%clk 0:02:47]} 9. Nh2 {[%clk 0:03:00]}  Be6 {[%clk 0:02:42]} 10. Qf3 {[%clk 0:02:58]}  d4 {[%clk 0:02:38]} 11. Ndf1 {[%clk 0:02:53]}  dxc3 {[%clk 0:02:36]} 12. bxc3 {[%clk 0:02:52]}  b5 {[%clk 0:02:34]} 13. Ng4 {[%clk 0:02:34]}  Nxg4 {[%clk 0:01:57]} 14. hxg4 {[%clk 0:02:34]}  Be7 {[%clk 0:01:34]} 15. Ng3 {[%clk 0:02:16]}  b4 {[%clk 0:01:26]} 16. Bd5 {[%clk 0:02:11]}  Bxd5 {[%clk 0:01:12]} 17. exd5 {[%clk 0:02:11]}  e4 {[%clk 0:01:13]} 18. dxe4 {[%clk 0:02:09]}  Ne5 {[%clk 0:01:10]} 19. Qe2 {[%clk 0:02:09]}  bxc3 {[%clk 0:01:04]} 20. Nf5 {[%clk 0:02:09]}  Bf6 {[%clk 0:00:49]} 21. Rb1 {[%clk 0:01:51]}  c6 {[%clk 0:00:37]} 22. d6 {[%clk 0:01:41]}  Rb8 {[%clk 0:00:26]} 23. Rxb8 {[%clk 0:01:34]}  Qxb8 {[%clk 0:00:27]} 24. O-O {[%clk 0:01:32]}  Nd7 {[%clk 0:00:17]} 25. f4 {[%clk 0:01:23]}  Qb1 {[%clk 0:00:11]} 26. e5 {[%clk 0:01:21]}  Nxe5 {[%clk 0:00:11]} 27. fxe5 {[%clk 0:01:20]}  Bxe5 {[%clk 0:00:12]} 28. Qc4 {[%clk 0:01:09]}  Bf6 {[%clk 0:00:09]} 29. Be3 {[%clk 0:00:53]}  Qb2 {[%clk 0:00:04]} 30. Bd4 {[%clk 0:00:46]}  Re2 {[%clk 0:00:03]} 31. Qxc6 {[%clk 0:00:45]}  c2 {[%clk 0:00:00]} 32. Bxb2 {[%clk 0:00:44]} 1-0

[Event "December 5 Late 2023"]
[Site "https://www.chess.com"]
[Date "2023.12.05"]
[Round "3"]
[White "Riff, Vincent"]
[Black "Drygalov, Andrey"]
[Result "0-1"]
[Board "23"]
[TimeControl "180+1"]
[WhiteFideId "617776"]
[BlackFideId "24171735"]
[WhiteElo "2679"]
[BlackElo "2965"]
[WhiteTeam "FRA"]
[BlackTeam "RUS"]
[WhiteClock "0:01:03"]
[BlackClock "0:00:30"]

1. e4 {[%clk 0:03:00]}  c5 {[%clk 0:03:00]} 2. Nc3 {[%clk 0:03:00]}  d6 {[%clk 0:02:59]} 3. Nf3 {[%clk 0:03:01]}  Nf6 {[%clk 0:02:59]} 4. d4 {[%clk 0:03:02]}  cxd4 {[%clk 0:02:59]} 5. Qxd4 {[%clk 0:03:02]}  Nc6 {[%clk 0:02:58]} 6. Bb5 {[%clk 0:03:01]}  Bd7 {[%clk 0:02:58]} 7. Bxc6 {[%clk 0:02:58]}  Bxc6 {[%clk 0:02:59]} 8. Bg5 {[%clk 0:02:57]}  e6 {[%clk 0:02:59]} 9. Bxf6 {[%clk 0:02:35]}  Qxf6 {[%clk 0:02:58]} 10. Qxf6 {[%clk 0:02:34]}  gxf6 {[%clk 0:02:59]} 11. O-O-O {[%clk 0:02:34]}  Rc8 {[%clk 0:02:49]} 12. Kb1 {[%clk 0:02:34]}  a6 {[%clk 0:02:48]} 13. Nd4 {[%clk 0:02:33]}  Rg8 {[%clk 0:02:44]} 14. g3 {[%clk 0:02:32]}  Bd7 {[%clk 0:02:39]} 15. f3 {[%clk 0:02:32]}  Be7 {[%clk 0:02:39]} 16. Rhe1 {[%clk 0:02:30]}  b5 {[%clk 0:02:39]} 17. Nce2 {[%clk 0:02:28]}  Bd8 {[%clk 0:02:36]} 18. Nb3 {[%clk 0:02:27]}  Ke7 {[%clk 0:02:33]} 19. Nf4 {[%clk 0:02:26]}  Bb6 {[%clk 0:02:33]} 20. Nd4 {[%clk 0:02:11]}  Bc5 {[%clk 0:01:56]} 21. Nb3 {[%clk 0:02:07]}  Ba7 {[%clk 0:01:52]} 22. Rd3 {[%clk 0:02:06]}  Rgd8 {[%clk 0:01:50]} 23. Red1 {[%clk 0:02:06]}  Bc6 {[%clk 0:01:47]} 24. Na5 {[%clk 0:02:03]}  Ba8 {[%clk 0:01:47]} 25. Nb3 {[%clk 0:02:00]}  Bb6 {[%clk 0:01:35]} 26. Re1 {[%clk 0:02:00]}  Kf8 {[%clk 0:01:33]} 27. Nh5 {[%clk 0:01:59]}  Ke7 {[%clk 0:01:34]} 28. c3 {[%clk 0:01:58]}  d5 {[%clk 0:01:27]} 29. exd5 {[%clk 0:01:54]}  Rxd5 {[%clk 0:01:27]} 30. Rxd5 {[%clk 0:01:51]}  Bxd5 {[%clk 0:01:28]} 31. Nf4 {[%clk 0:01:51]}  Bxf3 {[%clk 0:01:27]} 32. Nd4 {[%clk 0:01:51]}  Bxd4 {[%clk 0:01:26]} 33. cxd4 {[%clk 0:01:51]}  f5 {[%clk 0:01:27]} 34. d5 {[%clk 0:01:50]}  Be4+ {[%clk 0:01:27]} 35. Ka1 {[%clk 0:01:49]}  e5 {[%clk 0:01:27]} 36. Ne2 {[%clk 0:01:47]}  b4 {[%clk 0:01:26]} 37. g4 {[%clk 0:01:46]}  Kd6 {[%clk 0:01:20]} 38. Ng3 {[%clk 0:01:45]}  Kxd5 {[%clk 0:01:20]} 39. gxf5 {[%clk 0:01:45]}  Bd3 {[%clk 0:01:20]} 40. Nh5 {[%clk 0:01:42]}  Bxf5 {[%clk 0:01:17]} 41. Nf6+ {[%clk 0:01:39]}  Ke6 {[%clk 0:01:17]} 42. Nh5 {[%clk 0:01:39]}  Rc2 {[%clk 0:01:15]} 43. Rf1 {[%clk 0:01:38]}  e4 {[%clk 0:01:13]} 44. Ng7+ {[%clk 0:01:38]}  Ke5 {[%clk 0:01:06]} 45. Nxf5 {[%clk 0:01:39]}  Rxh2 {[%clk 0:01:05]} 46. Ne3 {[%clk 0:01:39]}  Kd4 {[%clk 0:01:03]} 47. Nf5+ {[%clk 0:01:36]}  Kd3 {[%clk 0:01:00]} 48. Rd1+ {[%clk 0:01:35]}  Ke2 {[%clk 0:00:54]} 49. Rc1 {[%clk 0:01:31]}  Kd2 {[%clk 0:00:54]} 50. Kb1 {[%clk 0:01:29]}  Rh5 {[%clk 0:00:31]} 51. Ng3 {[%clk 0:01:24]}  Re5 {[%clk 0:00:32]} 52. Nf1+ {[%clk 0:01:24]}  Ke2 {[%clk 0:00:31]} 53. Ng3+ {[%clk 0:01:22]}  Kf3 {[%clk 0:00:31]} 54. Nf1 {[%clk 0:01:19]}  e3 {[%clk 0:00:31]} 55. Nh2+ {[%clk 0:01:18]}  Kg3 {[%clk 0:00:31]} 56. Nf1+ {[%clk 0:01:18]}  Kf2 {[%clk 0:00:31]} 57. Nh2 {[%clk 0:01:15]}  f5 {[%clk 0:00:31]} 58. Rc4 {[%clk 0:01:11]}  e2 {[%clk 0:00:29]} 59. Rf4+ {[%clk 0:01:03]}  Kg3 {[%clk 0:00:30]} 0-1

[Event "December 5 Late 2023"]
[Site "https://www.chess.com"]
[Date "2023.12.05"]
[Round "3"]
[White "Atanasov, Anthony"]
[Black "Svane, Frederik"]
[Result "0-1"]
[Board "24"]
[TimeControl "180+1"]
[WhiteFideId "2623897"]
[BlackFideId "12923044"]
[WhiteElo "2663"]
[BlackElo "2935"]
[WhiteTeam "CAN"]
[BlackTeam "GER"]
[WhiteClock "0:00:02"]
[BlackClock "0:01:44"]

1. d4 {[%clk 0:03:00]}  Nf6 {[%clk 0:03:00]} 2. Nf3 {[%clk 0:02:59]}  d5 {[%clk 0:03:00]} 3. Bf4 {[%clk 0:02:59]}  e6 {[%clk 0:02:59]} 4. e3 {[%clk 0:02:59]}  c5 {[%clk 0:03:00]} 5. Nbd2 {[%clk 0:03:00]}  Qb6 {[%clk 0:03:00]} 6. Rb1 {[%clk 0:02:52]}  cxd4 {[%clk 0:03:00]} 7. exd4 {[%clk 0:02:52]}  Bd7 {[%clk 0:03:01]} 8. Be2 {[%clk 0:02:30]}  Bb5 {[%clk 0:03:01]} 9. O-O {[%clk 0:02:31]}  Be7 {[%clk 0:02:49]} 10. c4 {[%clk 0:02:17]}  dxc4 {[%clk 0:02:49]} 11. a4 {[%clk 0:02:17]}  Ba6 {[%clk 0:02:44]} 12. Nxc4 {[%clk 0:01:58]}  Bxc4 {[%clk 0:02:44]} 13. Bxc4 {[%clk 0:01:58]}  O-O {[%clk 0:02:44]} 14. Re1 {[%clk 0:01:45]}  Nc6 {[%clk 0:02:44]} 15. Be3 {[%clk 0:01:21]}  Qa5 {[%clk 0:02:45]} 16. Bd2 {[%clk 0:01:10]}  Qh5 {[%clk 0:02:40]} 17. Be2 {[%clk 0:01:04]}  Qd5 {[%clk 0:02:39]} 18. Be3 {[%clk 0:00:58]}  Rfd8 {[%clk 0:02:37]} 19. Rc1 {[%clk 0:00:53]}  Rac8 {[%clk 0:02:32]} 20. Bc4 {[%clk 0:00:49]}  Qa5 {[%clk 0:02:32]} 21. h3 {[%clk 0:00:43]}  h6 {[%clk 0:02:24]} 22. Re2 {[%clk 0:00:42]}  Nd5 {[%clk 0:02:22]} 23. Bd2 {[%clk 0:00:40]}  Qb6 {[%clk 0:02:21]} 24. a5 {[%clk 0:00:32]}  Nxa5 {[%clk 0:02:15]} 25. Bxd5 {[%clk 0:00:31]}  Rxc1 {[%clk 0:02:15]} 26. Qxc1 {[%clk 0:00:31]}  Rxd5 {[%clk 0:02:14]} 27. Re4 {[%clk 0:00:19]}  Nb3 {[%clk 0:02:09]} 28. Qc2 {[%clk 0:00:04]}  Nxd2 {[%clk 0:02:06]} 29. Qxd2 {[%clk 0:00:03]}  Bf6 {[%clk 0:02:06]} 30. Rg4 {[%clk 0:00:01]}  h5 {[%clk 0:02:03]} 31. Rf4 {[%clk 0:00:01]}  Qd8 {[%clk 0:02:03]} 32. Qe3 {[%clk 0:00:01]}  g6 {[%clk 0:02:01]} 33. Re4 {[%clk 0:00:01]}  Kg7 {[%clk 0:02:01]} 34. Qd3 {[%clk 0:00:02]}  b5 {[%clk 0:02:01]} 35. Qe2 {[%clk 0:00:02]}  a5 {[%clk 0:02:00]} 36. g3 {[%clk 0:00:02]}  a4 {[%clk 0:01:59]} 37. Kg2 {[%clk 0:00:02]}  b4 {[%clk 0:01:59]} 38. Qc4 {[%clk 0:00:02]}  Qa5 {[%clk 0:01:59]} 39. Qc8 {[%clk 0:00:01]}  a3 {[%clk 0:01:56]} 40. bxa3 {[%clk 0:00:02]}  bxa3 {[%clk 0:01:56]} 41. Re1 {[%clk 0:00:02]}  a2 {[%clk 0:01:57]} 42. Ra1 {[%clk 0:00:02]}  Rxd4 {[%clk 0:01:52]} 43. Nxd4 {[%clk 0:00:03]}  Bxd4 {[%clk 0:01:52]} 44. Qc1 {[%clk 0:00:02]}  Bxa1 {[%clk 0:01:50]} 45. Qxa1+ {[%clk 0:00:03]}  Kg8 {[%clk 0:01:49]} 46. h4 {[%clk 0:00:03]}  Qd5+ {[%clk 0:01:49]} 47. Kh2 {[%clk 0:00:03]}  Qb3 {[%clk 0:01:47]} 48. Qf6 {[%clk 0:00:03]}  Qd1 {[%clk 0:01:45]} 49. Qe7 {[%clk 0:00:02]}  a1=Q {[%clk 0:01:44]} 50. Qe8+ {[%clk 0:00:02]}  Kg7 {[%clk 0:01:45]} 51. Qe7 {[%clk 0:00:02]}  Qh1# {[%clk 0:01:44]} 0-1